fUSD/lending_fUSD_20260517
["ID","MTS","AMOUNT","RATE_DAILY","PERIOD"]
[422515065,1779017463000,-269.919999,0.00040474,2]
[422515063,1779017463000,-151224.17364578,0.00040474,60]
[422515062,1779017463000,-320.0,0.00040474,2]
[422515067,1779017463000,-1077.218969,0.00040474,2]
[422515068,1779017463000,-206.15884536,0.00040474,30]
[422515070,1779017463000,-2289.32100184,0.00040474,120]
[422515072,1779017463000,-150.0,0.00040474,2]
[422515071,1779017463000,-602.61886516,0.00040474,120]
[422515069,1779017463000,-50000.0,0.00040474,49]
[422515074,1779017463000,-771.93,0.00040474,120]
[422515077,1779017463000,-771.93,0.00040474,120]
[422515078,1779017463000,-771.93,0.00040474,120]
[422515073,1779017463000,-4500.0,0.00040474,90]
[422515076,1779017463000,-771.93,0.00040474,120]
[422515080,1779017463000,-771.93,0.00040474,120]
[422515081,1779017463000,-771.93,0.00040474,120]
[422515079,1779017463000,-771.93,0.00040474,120]
[422515083,1779017463000,-771.93,0.00040474,120]
[422515082,1779017463000,-771.93,0.00040474,120]
[422515085,1779017463000,-771.93,0.00040474,120]
[422515084,1779017463000,-771.93,0.00040474,120]
[422515024,1779017463000,-500.0,0.00040474,120]
[422515061,1779017463000,-5100.0,0.00040474,39]
[422515059,1779017463000,-500.0,0.00040474,120]
[422515075,1779017463000,-771.93,0.00040474,120]
[422515053,1779017463000,-543.46,0.00040474,120]
[422515058,1779017463000,-320.0,0.00040474,2]
[422515030,1779017463000,-586.91560267,0.00040474,120]
[422515031,1779017463000,-6393.0,0.00040474,120]
[422515027,1779017463000,-500.0,0.00040474,120]
[422515029,1779017463000,-500.0,0.00040474,120]
[422515034,1779017463000,-543.46,0.00040474,120]
[422515045,1779017463000,-543.46,0.00040474,120]
[422515038,1779017463000,-543.46,0.00040474,120]
[422515040,1779017463000,-543.46,0.00040474,120]
[422515036,1779017463000,-543.46,0.00040474,120]
[422515041,1779017463000,-543.46,0.00040474,120]
[422515039,1779017463000,-543.46,0.00040474,120]
[422515037,1779017463000,-543.46,0.00040474,120]
[422515044,1779017463000,-543.46,0.00040474,120]
[422515051,1779017463000,-543.46,0.00040474,120]
[422515054,1779017463000,-543.46,0.00040474,120]
[422515042,1779017463000,-543.46,0.00040474,120]
[422515057,1779017463000,-543.49888003,0.00040474,120]
[422515050,1779017463000,-543.46,0.00040474,120]
[422515056,1779017463000,-543.46,0.00040474,120]
[422515055,1779017463000,-543.46,0.00040474,120]
[422515052,1779017463000,-543.46,0.00040474,120]
[422515048,1779017463000,-543.46,0.00040474,120]
[422515047,1779017463000,-543.46,0.00040474,120]
[422515046,1779017463000,-543.46,0.00040474,120]
[422515043,1779017463000,-543.46,0.00040474,120]
[422515049,1779017463000,-543.46,0.00040474,120]
[422515120,1779017464000,-526.69,0.00040474,120]
[422515141,1779017464000,-526.85591666,0.00040474,120]
[422515125,1779017464000,-526.69,0.00040474,120]
[422515121,1779017464000,-526.69,0.00040474,120]
[422515123,1779017464000,-526.69,0.00040474,120]
[422515116,1779017464000,-278.0,0.00040474,120]
[422515126,1779017464000,-526.69,0.00040474,120]
[422515119,1779017464000,-526.69,0.00040474,120]
[422515122,1779017464000,-526.69,0.00040474,120]
[422515127,1779017464000,-526.69,0.00040474,120]
[422515130,1779017464000,-526.69,0.00040474,120]
[422515124,1779017464000,-526.69,0.00040474,120]
[422515140,1779017464000,-526.69,0.00040474,120]
[422515151,1779017464000,-892.32,0.00040515,120]
[422515129,1779017464000,-526.69,0.00040474,120]
[422515134,1779017464000,-526.69,0.00040474,120]
[422515135,1779017464000,-526.69,0.00040474,120]
[422515139,1779017464000,-526.69,0.00040474,120]
[422515136,1779017464000,-278.0,0.00040474,120]
[422515138,1779017464000,-526.69,0.00040474,120]
[422515137,1779017464000,-526.69,0.00040474,120]
[422515132,1779017464000,-526.69,0.00040474,120]
[422515133,1779017464000,-526.69,0.00040474,120]
[422515142,1779017464000,-278.0,0.00040474,120]
[422515143,1779017464000,-278.0,0.00040474,120]
[422515150,1779017464000,-150.0,0.000405,60]
[422515128,1779017464000,-526.69,0.00040474,120]
[422515131,1779017464000,-526.69,0.00040474,120]
[422515118,1779017464000,-526.69,0.00040474,120]
[422515089,1779017464000,-771.93,0.00040474,120]
[422515108,1779017464000,-500.0,0.00040474,120]
[422515086,1779017464000,-771.93,0.00040474,120]
[422515088,1779017464000,-771.93,0.00040474,120]
[422515148,1779017464000,-500.0,0.00040474,120]
[422515087,1779017464000,-771.93,0.00040474,120]
[422515090,1779017464000,-771.93,0.00040474,120]
[422515097,1779017464000,-772.06216121,0.00040474,120]
[422515096,1779017464000,-771.93,0.00040474,120]
[422515092,1779017464000,-771.93,0.00040474,120]
[422515094,1779017464000,-771.93,0.00040474,120]
[422515091,1779017464000,-771.93,0.00040474,120]
[422515098,1779017464000,-1078.76,0.00040474,120]
[422515093,1779017464000,-771.93,0.00040474,120]
[422515095,1779017464000,-771.93,0.00040474,120]
[422515107,1779017464000,-500.0,0.00040474,120]
[422515099,1779017464000,-500.0,0.00040474,120]
[422515101,1779017464000,-500.0,0.00040474,120]
[422515102,1779017464000,-500.0,0.00040474,120]
[422515104,1779017464000,-500.0,0.00040474,120]
[422515115,1779017464000,-278.0,0.00040474,120]
[422515114,1779017464000,-273.51692486,0.00040474,60]
[422515105,1779017464000,-500.0,0.00040474,120]
[422515112,1779017464000,-101151.05935656,0.00040474,30]
[422515106,1779017464000,-500.0,0.00040474,120]
[422515109,1779017464000,-500.0,0.00040474,120]
[422515103,1779017464000,-500.0,0.00040474,120]
[422515111,1779017464000,-10000.63825147,0.00040474,120]
[422515110,1779017464000,-259.2213202,0.00040474,120]
[422515113,1779017464000,-227.32395125,0.00040474,120]
[422515100,1779017464000,-500.0,0.00040474,120]
[422515153,1779017464000,-892.32,0.00040516,120]
[422515117,1779017464000,-526.69,0.00040474,120]
[422515145,1779017464000,-1169.91,0.00040474,120]
[422515183,1779017464000,-2313.0,0.0004068,11]
[422515180,1779017464000,-10000.0,0.00040674,120]
[422515181,1779017464000,-2313.0,0.00040679,11]
[422515185,1779017464000,-153.0,0.000407,120]
[422515184,1779017464000,-2313.0,0.0004068,11]
[422515187,1779017464000,-151.59,0.0004071,120]
[422515182,1779017464000,-2313.0,0.00040679,11]
[422515186,1779017464000,-169124.28160619,0.000407,12]
[422515203,1779017464000,-46092.0,0.00040876,120]
[422515192,1779017464000,-170.8630471,0.00040792,120]
[422515202,1779017464000,-44390.0,0.00040876,120]
[422515191,1779017464000,-158.1923734,0.00040777,30]
[422515193,1779017464000,-20117.2815259,0.000408,30]
[422515179,1779017464000,-10000.0,0.00040674,120]
[422515199,1779017464000,-193.1056996,0.00040849,30]
[422515194,1779017464000,-224.8179837,0.000408,30]
[422515197,1779017464000,-7206.71731886,0.00040834,2]
[422515196,1779017464000,-311.37681882,0.00040806,2]
[422515200,1779017464000,-1092.98,0.00040861,120]
[422515198,1779017464000,-2107.96,0.00040837,2]
[422515207,1779017464000,-233.4631985,0.000409,30]
[422515204,1779017464000,-1000.0,0.00040881,90]
[422515205,1779017464000,-311.37681882,0.00040889,2]
[422515208,1779017464000,-194.168,0.000409,43]
[422515206,1779017464000,-2005.9555727,0.00040899,30]
[422515210,1779017464000,-1239.6,0.000409,120]
[422515209,1779017464000,-200.0,0.000409,20]
[422515149,1779017464000,-6616.71663098,0.0004049,120]
[422515201,1779017464000,-2990.71,0.00040861,120]
[422515189,1779017464000,-233.27153218,0.00040726,60]
[422515195,1779017464000,-1091.0,0.000408,14]
[422515188,1779017464000,-193.1056996,0.00040712,30]
[422515152,1779017464000,-167.31,0.00040515,120]
[422515190,1779017464000,-1000.0,0.00040748,90]
[422515146,1779017464000,-1000.0,0.00040474,30]
[422515144,1779017464000,-278.0,0.00040474,120]
[422515147,1779017464000,-61076.3266694,0.00040474,40]
[422515155,1779017464000,-892.32,0.00040517,120]
[422515159,1779017464000,-161.4928877,0.00040548,5]
[422515162,1779017464000,-1000.0,0.00040572,90]
[422515157,1779017464000,-1000.0,0.00040546,90]
[422515161,1779017464000,-193.80345096,0.00040562,120]
[422515156,1779017464000,-170.8630471,0.00040518,120]
[422515154,1779017464000,-167.31,0.00040516,120]
[422515164,1779017464000,-500.19656985,0.0004059,43]
[422515163,1779017464000,-2313.0,0.00040582,11]
[422515166,1779017464000,-330.0,0.00040624,79]
[422515160,1779017464000,-1000.0,0.00040555,90]
[422515177,1779017464000,-10000.0,0.00040674,120]
[422515178,1779017464000,-10000.0,0.00040674,120]
[422515158,1779017464000,-193.1056996,0.00040548,30]
[422515175,1779017464000,-10000.0,0.00040674,120]
[422515171,1779017464000,-10000.0,0.00040674,120]
[422515176,1779017464000,-10000.0,0.00040674,120]
[422515170,1779017464000,-49932.01678235,0.00040674,120]
[422515173,1779017464000,-10000.0,0.00040674,120]
[422515174,1779017464000,-10000.0,0.00040674,120]
[422515172,1779017464000,-10000.0,0.00040674,120]
[422515167,1779017464000,-44390.0,0.00040626,120]
[422515168,1779017464000,-6784.29,0.00040639,2]
[422515165,1779017464000,-223.1,0.000406,31]
[422515169,1779017464000,-50000.0,0.00040674,120]
[422515233,1779017465000,-900.0,0.00040999,15]
[422515240,1779017465000,-800.0,0.00040999,15]
[422515231,1779017465000,-900.0,0.00040999,15]
[422515234,1779017465000,-900.0,0.00040999,15]
[422515235,1779017465000,-900.0,0.00040999,15]
[422515242,1779017465000,-800.0,0.00040999,15]
[422515238,1779017465000,-900.0,0.00040999,15]
[422515243,1779017465000,-800.0,0.00040999,15]
[422515237,1779017465000,-900.0,0.00040999,15]
[422515239,1779017465000,-800.0,0.00040999,15]
[422515236,1779017465000,-900.0,0.00040999,15]
[422515255,1779017465000,-50000.0,0.00041,75]
[422515244,1779017465000,-800.0,0.00040999,15]
[422515232,1779017465000,-900.0,0.00040999,15]
[422515254,1779017465000,-50000.0,0.00041,74]
[422515241,1779017465000,-800.0,0.00040999,15]
[422515230,1779017465000,-193.80345096,0.00040999,120]
[422515215,1779017465000,-1000.0,0.0004092,90]
[422515223,1779017465000,-17342.44378636,0.00040975,2]
[422515253,1779017465000,-50000.0,0.00041,73]
[422515217,1779017465000,-400.0,0.0004097,3]
[422515214,1779017465000,-1000.0,0.00040919,90]
[422515212,1779017465000,-1000.0,0.00040907,90]
[422515216,1779017465000,-1000.0,0.00040925,90]
[422515211,1779017465000,-2313.0,0.00040902,11]
[422515213,1779017465000,-1000.0,0.00040917,90]
[422515221,1779017465000,-3316.11994332,0.00040975,2]
[422515220,1779017465000,-150.0,0.00040975,2]
[422515218,1779017465000,-400.0,0.0004097,3]
[422515227,1779017465000,-1934.38338737,0.00040998,30]
[422515219,1779017465000,-400.0,0.0004097,3]
[422515222,1779017465000,-150.0,0.00040975,2]
[422515225,1779017465000,-2294.9737345,0.00040975,2]
[422515224,1779017465000,-150.0,0.00040975,2]
[422515226,1779017465000,-500.61556267,0.0004099,7]
[422515228,1779017465000,-150.0,0.00040999,120]
[422515229,1779017465000,-159.0,0.00040999,120]
[422515249,1779017465000,-1000.0,0.00040999,90]
[422515262,1779017465000,-4474.91678066,0.00041,120]
[422515247,1779017465000,-1865.36488657,0.00040999,30]
[422515274,1779017465000,-500.0,0.00038356,2]
[422515282,1779017465000,-751138.94608137,0.00041,120]
[422515275,1779017465000,-500.0,0.00038356,2]
[422515272,1779017465000,-300.0,0.00036436,2]
[422515273,1779017465000,-500.0,0.00038356,2]
[422515277,1779017465000,-500.0,0.00038356,2]
[422515279,1779017465000,-500.0,0.00038356,2]
[422515271,1779017465000,-300.0,0.00036436,2]
[422515283,1779017465000,-767380.60628878,0.00041,120]
[422515278,1779017465000,-500.0,0.00038356,2]
[422515280,1779017465000,-500.0,0.00038356,2]
[422515281,1779017465000,-20784.12676373,0.00041,120]
[422515284,1779017465000,-172.0,0.00021,2]
[422515287,1779017465000,-1303.00180029,0.00041,120]
[422515286,1779017465000,-830.20319062,0.00041,120]
[422515248,1779017465000,-382.7,0.00040999,120]
[422515276,1779017465000,-500.0,0.00038356,2]
[422515264,1779017465000,-516.8580236,0.00028947,7]
[422515285,1779017465000,-500.0,0.00038356,2]
[422515268,1779017465000,-567.52,0.00029042,7]
[422515250,1779017465000,-50000.0,0.00041,69]
[422515245,1779017465000,-800.0,0.00040999,15]
[422515246,1779017465000,-800.0,0.00040999,15]
[422515252,1779017465000,-50000.0,0.00041,71]
[422515266,1779017465000,-567.52,0.00028979,30]
[422515257,1779017465000,-151.0,0.00041,120]
[422515258,1779017465000,-86980.99485835,0.00041,120]
[422515256,1779017465000,-162.846,0.00041,120]
[422515251,1779017465000,-50000.0,0.00041,72]
[422515261,1779017465000,-500.0,0.00038356,2]
[422515260,1779017465000,-567.52,0.00028915,2]
[422515263,1779017465000,-172.0,0.0002,2]
[422515269,1779017465000,-567.52,0.00029074,30]
[422515270,1779017465000,-567.52,0.00029105,2]
[422515265,1779017465000,-50.6619764,0.00028947,7]
[422515267,1779017465000,-567.52,0.0002901,2]
[422515259,1779017465000,-261.40520464,0.00041,120]
[422515305,1779017466000,-500.0,0.00038356,2]
[422515307,1779017466000,-500.0,0.00038356,2]
[422515313,1779017466000,-487622.04387919,0.00041,120]
[422515308,1779017466000,-500.0,0.00038356,2]
[422515310,1779017466000,-500.0,0.00038356,2]
[422515304,1779017466000,-500.0,0.00038356,2]
[422515311,1779017466000,-500.0,0.00038356,2]
[422515321,1779017466000,-68461.06391118,0.00041,120]
[422515314,1779017466000,-864.72834673,0.0001608,2]
[422515316,1779017466000,-225.27165327,0.00038356,2]
[422515322,1779017466000,-13333.28671293,0.00041,120]
[422515317,1779017466000,-500.0,0.00028338,3]
[422515318,1779017466000,-274.72834673,0.00038356,2]
[422515323,1779017466000,-18441.32415673,0.00041,120]
[422515306,1779017466000,-500.0,0.00038356,2]
[422515315,1779017466000,-500.0,0.00027738,2]
[422515303,1779017466000,-500.0,0.00038356,2]
[422515302,1779017466000,-500.0,0.00038356,2]
[422515309,1779017466000,-500.0,0.00038356,2]
[422515290,1779017466000,-153962.15118078,0.00041,120]
[422515289,1779017466000,-500.0,0.00038356,2]
[422515324,1779017466000,-3704.90040596,0.00041,120]
[422515288,1779017466000,-567.52,0.00029137,7]
[422515293,1779017466000,-160.0,0.00021,4]
[422515292,1779017466000,-184.95027952,0.0002058,2]
[422515291,1779017466000,-267.38460733,0.0001608,2]
[422515301,1779017466000,-300.0,0.00036436,2]
[422515295,1779017466000,-172.0,0.00023,2]
[422515294,1779017466000,-172.0,0.00022,2]
[422515298,1779017466000,-567.52,0.00029201,2]
[422515300,1779017466000,-300.0,0.00036436,2]
[422515299,1779017466000,-567.68,0.00029232,7]
[422515296,1779017466000,-500.0,0.00027137,2]
[422515297,1779017466000,-567.52,0.00029169,30]
[422515312,1779017466000,-76524.03753953,0.00041,120]
[422515319,1779017466000,-500.0,0.00038356,2]
[422515356,1779017466000,-500.0,0.00034946,10]
[422515325,1779017466000,-4440.13785723,0.00041,120]
[422515346,1779017466000,-500.0,0.00038356,2]
[422515355,1779017466000,-50553.35598716,0.00041,120]
[422515348,1779017466000,-500.0,0.00038356,2]
[422515354,1779017466000,-214.20926574,0.00038356,2]
[422515347,1779017466000,-500.0,0.00038356,2]
[422515353,1779017466000,-500.0,0.00038356,2]
[422515345,1779017466000,-625.0,0.00034558,2]
[422515351,1779017466000,-500.0,0.00038356,2]
[422515349,1779017466000,-500.0,0.00038356,2]
[422515352,1779017466000,-500.0,0.00038356,2]
[422515360,1779017466000,-301.0575994,0.00041,120]
[422515357,1779017466000,-3055.378,0.00041,120]
[422515359,1779017466000,-161057.91989353,0.00041,120]
[422515358,1779017466000,-2129.26426272,0.00041,120]
[422515350,1779017466000,-500.0,0.00038356,2]
[422515344,1779017466000,-500.0,0.00034346,9]
[422515342,1779017466000,-500.0,0.00033144,8]
[422515333,1779017466000,-625.0,0.00028558,2]
[422515328,1779017466000,-4223.6177973,0.00041,120]
[422515326,1779017466000,-10005.46456067,0.00041,120]
[422515327,1779017466000,-1001.35419885,0.00041,120]
[422515329,1779017466000,-625.0,0.00022558,2]
[422515330,1779017466000,-174.0,0.00024,2]
[422515331,1779017466000,-625.0,0.00025558,2]
[422515332,1779017466000,-8524.3,0.00027397,10]
[422515341,1779017466000,-500.0,0.00032543,7]
[422515320,1779017466000,-28662.69658575,0.00041,120]
[422515334,1779017466000,-500.0,0.00028939,3]
[422515336,1779017466000,-500.0,0.00030141,5]
[422515343,1779017466000,-500.0,0.00033745,9]
[422515339,1779017466000,-625.0,0.00031558,2]
[422515337,1779017466000,-500.0,0.00030741,5]
[422515340,1779017466000,-500.0,0.00031943,7]
[422515338,1779017466000,-500.0,0.00031342,6]
[422515335,1779017466000,-500.0,0.0002954,4]
[422515361,1779017478000,-2000.0,0.00013795,2]
[422515363,1779017600000,-244.73,0.00013018,2]
[422515365,1779017707000,5862.62033389,7.945e-05,2]
[422515364,1779017707000,11.17233911,7.945e-05,2]
[422515367,1779017768000,628.4387621,7.945e-05,2]
[422515368,1779017768000,3501.2829149,7.945e-05,2]
[422515369,1779017788000,-2250.759,0.00013326,2]
[422515374,1779018042000,-172.241,0.00013326,2]
[422515375,1779018100000,3156.14,0.00030137,120]
[422515383,1779018293000,-150.0,0.00012593,2]
[422515384,1779018396000,1011.34,0.0003013,120]
[422515386,1779018408000,-164.14317544,0.00012951,2]
[422515385,1779018408000,-150.0,0.00012951,2]
[422515387,1779018434000,958.33,0.00028755,120]
[422515389,1779018483000,500.0,0.00028755,120]
[422515390,1779018511000,4911.75,0.00030137,120]
[422515391,1779018530000,185.75,6.507e-05,2]
[422515392,1779018531000,185.75,8.591e-05,2]
[422515393,1779018543000,-185.75,0.00010675,2]
[422515402,1779018632000,-300.0,0.00012872,2]
[422515425,1779018632000,-500.0,0.00013597,2]
[422515417,1779018632000,-151.0,0.00013595,2]
[422515424,1779018632000,-500.0,0.00013597,2]
[422515418,1779018632000,-2550.86,0.00013597,2]
[422515426,1779018632000,-500.0,0.00013597,2]
[422515408,1779018632000,-299.99,0.00012982,2]
[422515406,1779018632000,-164.41,0.00012973,2]
[422515411,1779018632000,-2000.0,0.00013393,2]
[422515412,1779018632000,-999.99,0.00013393,2]
[422515397,1779018632000,-185.75,0.00012759,2]
[422515401,1779018632000,-1200.0,0.00012872,2]
[422515409,1779018632000,-500.0,0.00013361,2]
[422515405,1779018632000,-3243.37682456,0.00012951,2]
[422515403,1779018632000,-49052.28,0.00012873,2]
[422515410,1779018632000,-150.0,0.00013392,2]
[422515404,1779018632000,-157.0,0.00012943,2]
[422515413,1779018632000,-500.91667493,0.00013588,2]
[422515400,1779018632000,-247.64541319,0.00012857,2]
[422515399,1779018632000,-1015.2,0.00012837,2]
[422515398,1779018632000,-250.0,0.00012798,2]
[422515407,1779018632000,-200.0,0.00012982,2]
[422515414,1779018632000,-1269.96407724,0.00013595,2]
[422515428,1779018632000,-500.0,0.00013597,2]
[422515416,1779018632000,-9353.44893315,0.00013595,2]
[422515415,1779018632000,-308.10604557,0.00013595,2]
[422515444,1779018632000,-14656.88723394,0.00013598,2]
[422515442,1779018632000,-88346.97198502,0.00013598,2]
[422515443,1779018632000,-11098.24735058,0.00013598,2]
[422515441,1779018632000,-882096.80056419,0.00013598,2]
[422515435,1779018632000,-206.55502416,0.00013597,2]
[422515437,1779018632000,-500.0,0.00013597,2]
[422515436,1779018632000,-500.0,0.00013597,2]
[422515431,1779018632000,-500.0,0.00013597,2]
[422515439,1779018632000,-500.0,0.00013597,2]
[422515432,1779018632000,-500.0,0.00013597,2]
[422515440,1779018632000,-590.20747172,0.00013597,2]
[422515430,1779018632000,-500.0,0.00013597,2]
[422515434,1779018632000,-500.0,0.00013597,2]
[422515433,1779018632000,-500.0,0.00013597,2]
[422515438,1779018632000,-500.0,0.00013597,2]
[422515429,1779018632000,-500.0,0.00013597,2]
[422515427,1779018632000,-487.80028436,0.00013597,2]
[422515422,1779018632000,-500.0,0.00013597,2]
[422515420,1779018632000,-500.0,0.00013597,2]
[422515421,1779018632000,-500.0,0.00013597,2]
[422515419,1779018632000,-195.207,0.00013597,2]
[422515463,1779018638000,-958.33,0.00013698,2]
[422515462,1779018638000,-958.33,0.00013698,2]
[422515464,1779018638000,-958.33,0.00013698,2]
[422515465,1779018638000,-958.33,0.00013698,2]
[422515474,1779018638000,-500.0,0.00013698,2]
[422515475,1779018638000,-500.0,0.00013698,2]
[422515472,1779018638000,-500.0,0.00013698,2]
[422515468,1779018638000,-823.2,0.00013698,2]
[422515466,1779018638000,-823.2,0.00013698,2]
[422515471,1779018638000,-823.2,0.00013698,2]
[422515467,1779018638000,-823.2,0.00013698,2]
[422515459,1779018638000,-164.41440023,0.00013698,2]
[422515473,1779018638000,-500.0,0.00013698,2]
[422515457,1779018638000,-500.0,0.00013698,2]
[422515449,1779018638000,-500.0,0.00013698,2]
[422515456,1779018638000,-500.0,0.00013698,2]
[422515461,1779018638000,-958.33,0.00013698,2]
[422515452,1779018638000,-500.0,0.00013698,2]
[422515460,1779018638000,-958.33,0.00013698,2]
[422515455,1779018638000,-500.0,0.00013698,2]
[422515454,1779018638000,-500.0,0.00013698,2]
[422515450,1779018638000,-500.0,0.00013698,2]
[422515453,1779018638000,-500.0,0.00013698,2]
[422515451,1779018638000,-500.0,0.00013698,2]
[422515447,1779018638000,-500.0,0.00013698,2]
[422515448,1779018638000,-500.0,0.00013698,2]
[422515446,1779018638000,-501.61257638,0.00013698,2]
[422515469,1779018638000,-823.2,0.00013698,2]
[422515458,1779018638000,-500.0,0.00013698,2]
[422515470,1779018638000,-823.2,0.00013698,2]
[422515495,1779018638000,-193.94,0.00013986,2]
[422515478,1779018638000,-500.0,0.00013698,2]
[422515476,1779018638000,-500.0,0.00013698,2]
[422515507,1779018638000,-500.0,0.00014194,2]
[422515505,1779018638000,-500.0,0.00014194,2]
[422515503,1779018638000,-1680.0,0.00014159,2]
[422515506,1779018638000,-500.0,0.00014194,2]
[422515502,1779018638000,-150.0,0.00014126,2]
[422515497,1779018638000,-250.0,0.00014034,2]
[422515493,1779018638000,-500.0,0.00013972,2]
[422515494,1779018638000,-500.0,0.00013983,2]
[422515499,1779018638000,-166.66,0.00014075,2]
[422515498,1779018638000,-607.62,0.00014072,2]
[422515496,1779018638000,-250.0,0.00014,2]
[422515491,1779018638000,-2000.0,0.0001389,2]
[422515500,1779018638000,-2500.0,0.00014088,2]
[422515504,1779018638000,-230.14457524,0.00014194,2]
[422515501,1779018638000,-231.0,0.00014118,2]
[422515492,1779018638000,-1000.0,0.000139,5]
[422515477,1779018638000,-500.0,0.00013698,2]
[422515479,1779018638000,-500.0,0.00013698,2]
[422515483,1779018638000,-500.0,0.00013698,2]
[422515485,1779018638000,-500.0,0.00013698,2]
[422515486,1779018638000,-500.0,0.00013698,2]
[422515484,1779018638000,-500.0,0.00013698,2]
[422515487,1779018638000,-166.66,0.00013699,2]
[422515488,1779018638000,-33183.3746,0.00013795,2]
[422515480,1779018638000,-500.0,0.00013698,2]
[422515482,1779018638000,-500.0,0.00013698,2]
[422515490,1779018638000,-166.66,0.00013887,2]
[422515489,1779018638000,-500.0,0.000138,5]
[422515481,1779018638000,-500.0,0.00013698,2]
[422515550,1779018639000,-500.0,0.0001428,2]
[422515545,1779018639000,-500.0,0.0001428,2]
[422515546,1779018639000,-500.0,0.0001428,2]
[422515548,1779018639000,-500.0,0.0001428,2]
[422515543,1779018639000,-500.0,0.0001428,2]
[422515547,1779018639000,-500.0,0.0001428,2]
[422515541,1779018639000,-500.0,0.0001428,2]
[422515542,1779018639000,-500.0,0.0001428,2]
[422515544,1779018639000,-500.0,0.0001428,2]
[422515539,1779018639000,-500.0,0.0001428,2]
[422515552,1779018639000,-500.0,0.0001428,2]
[422515540,1779018639000,-523.14,0.0001428,2]
[422515564,1779018639000,-500.0,0.0001428,2]
[422515551,1779018639000,-500.0,0.0001428,2]
[422515554,1779018639000,-500.0,0.0001428,2]
[422515553,1779018639000,-500.0,0.0001428,2]
[422515555,1779018639000,-500.0,0.0001428,2]
[422515566,1779018639000,-841.11,0.0001428,2]
[422515563,1779018639000,-500.0,0.0001428,2]
[422515557,1779018639000,-500.0,0.0001428,2]
[422515565,1779018639000,-841.11,0.0001428,2]
[422515567,1779018639000,-841.11,0.0001428,2]
[422515560,1779018639000,-500.0,0.0001428,2]
[422515556,1779018639000,-500.0,0.0001428,2]
[422515538,1779018639000,-500.0,0.0001428,2]
[422515562,1779018639000,-500.0,0.0001428,2]
[422515549,1779018639000,-500.0,0.0001428,2]
[422515537,1779018639000,-500.0,0.0001428,2]
[422515522,1779018639000,-500.0,0.0001428,2]
[422515533,1779018639000,-500.0,0.0001428,2]
[422515558,1779018639000,-500.0,0.0001428,2]
[422515509,1779018639000,-500.0,0.00014194,2]
[422515508,1779018639000,-500.0,0.00014194,2]
[422515511,1779018639000,-841.11,0.00014194,2]
[422515512,1779018639000,-500.0,0.00014194,2]
[422515519,1779018639000,-500.0,0.0001428,2]
[422515510,1779018639000,-500.0,0.00014194,2]
[422515513,1779018639000,-512.13,0.00014194,2]
[422515514,1779018639000,-505.9,0.00014194,2]
[422515516,1779018639000,-166.66,0.00014263,2]
[422515517,1779018639000,-500.0,0.00014279,2]
[422515515,1779018639000,-500.0,0.00014246,2]
[422515518,1779018639000,-500.0,0.0001428,2]
[422515520,1779018639000,-500.0,0.0001428,2]